fUSD/lending_fUSD_20260307
["ID","MTS","AMOUNT","RATE_DAILY","PERIOD"]
[407865746,1772845807168,-245.0,0.00011554,2]
[407865747,1772845807198,-1000.0,0.00011612,2]
[407865748,1772845807226,-300.0,0.00011612,2]
[407865749,1772845807254,-300.0,0.00011612,2]
[407865750,1772845807284,-1200.0,0.00011612,2]
[407865751,1772845807312,-200.0,0.00011613,2]
[407865752,1772845807342,-999.99,0.00011613,2]
[407865753,1772845807515,-0.02,0.00011613,2]
[407865754,1772845807747,-0.04,0.00011613,2]
[407865755,1772845808298,-4420.00598258,0.00011613,2]
[407865756,1772845810522,-4420.08598258,0.00011613,2]
[407865757,1772845810618,-1159.83803484,0.00011613,2]
[407865758,1772845810654,-2247.79,0.00011613,2]
[407865759,1772845810693,-150.0,0.0001171,2]
[407865760,1772845810888,-1009.83803484,0.00011711,2]
[407865761,1772845810905,-150.0,0.00011711,2]
[407865762,1772845810938,-2884.75393032,0.00011711,2]
[407865763,1772845812194,2035.1990158,0.00011242,2]
[407865764,1772845812215,3705.9209842,0.00011242,2]
[407865765,1772845813222,-10000.01,0.00011711,2]
[407865766,1772845823150,159.0,9.5e-05,3]
[407865775,1772845832579,-55081.74273969,0.00011711,2]
[407865776,1772845832590,-5305.71,0.00011721,2]
[407865777,1772845832599,-516.46,0.00011721,2]
[407865778,1772845832608,-150.99,0.00011721,2]
[407865779,1772845832617,-150.99,0.00011721,2]
[407865780,1772845832627,-14676.68,0.00011721,2]
[407865781,1772845832637,-608.86,0.00011721,2]
[407865782,1772845832646,-299.99,0.00011721,2]
[407865783,1772845832656,-9999.99,0.00011721,2]
[407865784,1772845832665,-244.5,0.00011745,2]
[407865785,1772845832675,-500.0,0.00011773,2]
[407865786,1772845832684,-500.0,0.00011773,2]
[407865787,1772845832693,-500.0,0.00011773,2]
[407865788,1772845832703,-500.0,0.000119,2]
[407865789,1772845832712,-1900.0,0.000119,4]
[407865790,1772845832722,-2500.0,0.00011957,2]
[407865791,1772845832731,-11475.86644204,0.00011973,2]
[407865792,1772845832741,-3807.15437604,0.00011978,2]
[407865793,1772845832750,-153.26773019,0.00012,3]
[407865794,1772845832759,-158.62451785,0.00012,3]
[407865795,1772845832768,-160.37989833,0.00012,3]
[407865796,1772845832777,-299.0,0.00012032,2]
[407865797,1772845832787,-12755.09128675,0.00012033,2]
[407865798,1772845832798,-1327.0,0.00012038,2]
[407865799,1772845832808,-404.0,0.00012056,2]
[407865800,1772845832817,-1012.0,0.00012058,2]
[407865801,1772845832826,-205.0,0.00012062,2]
[407865802,1772845832836,-396.0,0.00012069,2]
[407865803,1772845832846,-29347.5266,0.00012073,2]
[407865804,1772845832855,-500.11732428,0.00012073,2]
[407865805,1772845832865,-589.03508066,0.00012073,2]
[407865806,1772845832876,-500.0,0.00012073,2]
[407865807,1772845832885,-501.14462458,0.00012073,2]
[407865808,1772845832894,-500.0,0.00012073,2]
[407865809,1772845832903,-240.12890457,0.00012073,2]
[407865810,1772845832912,-500.0,0.00012073,2]
[407865811,1772845832922,-500.0,0.00012073,2]
[407865812,1772845832931,-500.0,0.00012073,2]
[407865813,1772845832941,-867.0,0.00012082,2]
[407865814,1772845832950,-173.0,0.00012097,2]
[407865815,1772845832959,-500.0,0.00012103,2]
[407865816,1772845832969,-500.0,0.00012103,2]
[407865817,1772845832978,-500.0,0.00012103,2]
[407865818,1772845832988,-500.0,0.00012103,2]
[407865819,1772845832997,-500.0,0.00012103,2]
[407865820,1772845833006,-500.0,0.00012103,2]
[407865821,1772845833016,-500.0,0.00012103,2]
[407865822,1772845833025,-500.0,0.00012103,2]
[407865823,1772845833035,-500.0,0.00012103,2]
[407865824,1772845833044,-500.0,0.00012103,2]
[407865825,1772845833053,-500.0,0.00012103,2]
[407865826,1772845833062,-500.0,0.00012103,2]
[407865827,1772845833072,-500.0,0.00012103,2]
[407865828,1772845833081,-500.0,0.00012103,2]
[407865829,1772845833090,-500.0,0.00012103,2]
[407865830,1772845833099,-500.0,0.00012103,2]
[407865831,1772845833108,-500.0,0.00012103,2]
[407865832,1772845833118,-500.0,0.00012103,2]
[407865833,1772845833127,-500.0,0.00012103,2]
[407865834,1772845833136,-500.0,0.00012103,2]
[407865835,1772845833146,-500.0,0.00012103,2]
[407865836,1772845833155,-500.0,0.00012103,2]
[407865837,1772845833165,-500.0,0.00012103,2]
[407865838,1772845833174,-500.0,0.00012103,2]
[407865839,1772845833184,-500.0,0.00012103,2]
[407865840,1772845833193,-500.0,0.00012103,2]
[407865841,1772845833203,-500.0,0.00012103,2]
[407865842,1772845833212,-500.0,0.00012103,2]
[407865843,1772845833222,-500.0,0.00012103,2]
[407865844,1772845833231,-500.0,0.00012103,2]
[407865845,1772845833240,-500.0,0.00012103,2]
[407865846,1772845833250,-500.0,0.00012103,2]
[407865847,1772845833260,-500.0,0.00012103,2]
[407865848,1772845833269,-500.0,0.00012103,2]
[407865849,1772845833282,-500.0,0.00012103,2]
[407865850,1772845833302,-500.0,0.00012103,2]
[407865851,1772845833311,-500.0,0.00012103,2]
[407865852,1772845833322,-500.0,0.00012103,2]
[407865853,1772845833331,-500.0,0.00012103,2]
[407865854,1772845833340,-500.0,0.00012103,2]
[407865855,1772845833349,-500.0,0.00012103,2]
[407865856,1772845833359,-500.0,0.00012103,2]
[407865857,1772845833368,-307.74330464,0.00012103,2]
[407865858,1772845833378,-500.0,0.00012103,2]
[407865859,1772845833388,-500.0,0.00012103,2]
[407865860,1772845833398,-500.0,0.00012103,2]
[407865861,1772845833407,-500.0,0.00012103,2]
[407865862,1772845833416,-500.0,0.00012103,2]
[407865863,1772845833426,-500.0,0.00012103,2]
[407865864,1772845833435,-500.0,0.00012103,2]
[407865865,1772845833445,-500.0,0.00012103,2]
[407865866,1772845833456,-500.0,0.00012103,2]
[407865867,1772845833466,-500.0,0.00012103,2]
[407865868,1772845833476,-500.0,0.00012103,2]
[407865869,1772845833492,-500.0,0.00012103,2]
[407865870,1772845833512,-500.0,0.00012103,2]
[407865871,1772845833522,-500.0,0.00012103,2]
[407865872,1772845833533,-500.0,0.00012103,2]
[407865873,1772845833543,-500.0,0.00012103,2]
[407865874,1772845833552,-500.0,0.00012103,2]
[407865875,1772845833562,-500.0,0.00012103,2]
[407865876,1772845833571,-500.0,0.00012103,2]
[407865877,1772845833581,-500.0,0.00012103,2]
[407865878,1772845833590,-500.0,0.00012103,2]
[407865879,1772845833599,-500.0,0.00012103,2]
[407865880,1772845833609,-500.0,0.00012103,2]
[407865881,1772845833618,-500.0,0.00012103,2]
[407865882,1772845833628,-500.0,0.00012103,2]
[407865883,1772845833637,-500.0,0.00012103,2]
[407865884,1772845833647,-500.0,0.00012103,2]
[407865885,1772845833657,-120180.08328923,0.00012104,2]
[407865886,1772845833666,-182.0,0.00012121,2]
[407865887,1772845833675,-151.0,0.00012133,2]
[407865888,1772845833685,-151.0,0.00012133,2]
[407865889,1772845833695,-151.0,0.00012133,2]
[407865890,1772845833705,-151.0,0.00012133,2]
[407865891,1772845833716,-151.0,0.00012133,2]
[407865892,1772845833726,-151.0,0.00012133,2]
[407865893,1772845833735,-151.0,0.00012133,2]
[407865894,1772845833744,-151.0,0.00012133,2]
[407865895,1772845833753,-200.0,0.00012133,2]
[407865896,1772845833763,-151.0,0.00012133,2]
[407865897,1772845833773,-500.0,0.00012133,2]
[407865898,1772845833782,-151.0,0.00012133,2]
[407865899,1772845833792,-500.0,0.00012133,2]
[407865900,1772845833809,-151.0,0.00012133,2]
[407865901,1772845833819,-500.0,0.00012133,2]
[407865902,1772845833829,-500.0,0.00012133,2]
[407865903,1772845833839,-500.0,0.00012133,2]
[407865904,1772845833848,-500.0,0.00012133,2]
[407865905,1772845833857,-500.0,0.00012133,2]
[407865906,1772845833869,-500.0,0.00012133,2]
[407865907,1772845833882,-500.0,0.00012133,2]
[407865908,1772845834285,-500.0,0.00012133,2]
[407865909,1772845834301,-500.0,0.00012133,2]
[407865910,1772845834311,-500.0,0.00012133,2]
[407865911,1772845834322,-500.0,0.00012133,2]
[407865912,1772845834331,-500.0,0.00012133,2]
[407865913,1772845834340,-500.0,0.00012133,2]
[407865914,1772845834350,-500.0,0.00012133,2]
[407865915,1772845834360,-500.0,0.00012133,2]
[407865916,1772845834369,-500.0,0.00012133,2]
[407865917,1772845834380,-500.0,0.00012133,2]
[407865918,1772845834390,-500.0,0.00012133,2]
[407865919,1772845834400,-500.0,0.00012133,2]
[407865920,1772845834409,-500.0,0.00012133,2]
[407865921,1772845834419,-254.58946883,0.00012133,2]
[407865922,1772845834428,-500.0,0.00012133,2]
[407865923,1772845834438,-171.02061742,0.00012133,2]
[407865924,1772845834448,-151.0,0.00012133,2]
[407865925,1772845834458,-151.0,0.00012133,2]
[407865926,1772845834467,-151.0,0.00012133,2]
[407865927,1772845834478,-151.0,0.00012133,2]
[407865928,1772845834488,-151.0,0.00012133,2]
[407865929,1772845834498,-151.0,0.00012133,2]
[407865930,1772845834507,-151.0,0.00012133,2]
[407865931,1772845834516,-151.0,0.00012133,2]
[407865932,1772845834525,-151.0,0.00012133,2]
[407865933,1772845834534,-151.0,0.00012133,2]
[407865934,1772845834543,-151.0,0.00012133,2]
[407865935,1772845834552,-151.0,0.00012133,2]
[407865936,1772845834562,-151.0,0.00012133,2]
[407865937,1772845834571,-151.0,0.00012133,2]
[407865938,1772845834580,-151.0,0.00012133,2]
[407865939,1772845834589,-265.77000524,0.00012133,2]
[407865940,1772845834599,-1486.38386609,0.00012139,3]
[407865941,1772845834608,-1064.0361,0.0001217,2]
[407865942,1772845834618,-1000.0,0.0001217,2]
[407865943,1772845834628,-164.89685656,0.00012173,2]
[407865944,1772845834637,-500.07952757,0.00012173,2]
[407865945,1772845834647,-637.7067289,0.00012173,2]
[407865946,1772845834657,-163.17298866,0.00012173,2]
[407865947,1772845834666,-501.11845623,0.00012173,2]
[407865948,1772845834676,-500.0,0.00012173,2]
[407865949,1772845834685,-573.58002767,0.00012173,2]
[407865950,1772845834695,-500.0,0.00012173,2]
[407865951,1772845834706,-500.0,0.00012173,2]
[407865952,1772845834717,-318.03151824,0.00012173,2]
[407865953,1772845834727,-500.0,0.00012173,2]
[407865954,1772845834739,-500.0,0.00012173,2]
[407865955,1772845834748,-167.11665281,0.00012173,2]
[407865956,1772845834759,-500.0,0.00012173,2]
[407865957,1772845834769,-500.38582798,0.00012173,2]
[407865958,1772845834779,-893.89451682,0.00012184,2]
[407865959,1772845834789,-667.41849618,0.00012244,2]
[407865960,1772845834802,-1320.0,0.00012304,2]
[407865961,1772845834811,-193.96734881,0.00012314,2]
[407865962,1772845834821,-1000.0,0.00012321,2]
[407865963,1772845834832,-1000.0,0.00012321,2]
[407865964,1772845834842,-555.0,0.00012328,2]
[407865965,1772845834852,-244.5,0.00012363,2]
[407865966,1772845834862,-250.0,0.00012411,2]
[407865967,1772845834872,-500.0,0.00012485,2]
[407865968,1772845834882,-2980.96817436,0.00012485,2]
[407865969,1772845834892,-1600.0,0.00012522,2]
[407865970,1772845834902,-5000.0,0.00012562,2]
[407865971,1772845834912,-1000.0,0.00012621,2]
[407865972,1772845834923,-1000.0,0.00012621,2]
[407865973,1772845834932,-1000.0,0.00012621,2]
[407865974,1772845834942,-500.0,0.00012629,2]
[407865975,1772845834952,-693.3919763,0.00012629,2]
[407865976,1772845834962,-500.0,0.00012629,2]
[407865977,1772845834971,-500.0,0.00012629,2]
[407865978,1772845834981,-500.0,0.00012629,2]
[407865979,1772845834992,-500.0,0.00012629,2]
[407865980,1772845835004,-500.0,0.00012629,2]
[407865981,1772845835013,-500.0,0.00012629,2]
[407865982,1772845835022,-500.0,0.00012629,2]
[407865983,1772845835032,-500.0,0.00012629,2]
[407865984,1772845835042,-500.0,0.00012629,2]
[407865985,1772845835052,-500.0,0.00012629,2]
[407865986,1772845835062,-500.0,0.00012629,2]
[407865987,1772845835071,-200.0,0.00012681,2]
[407865988,1772845835082,-719.04747942,0.00012684,2]
[407865989,1772845835091,-5000.0,0.00012709,2]
[407865990,1772845835102,-1000.0,0.00012721,2]
[407865991,1772845835112,-1000.0,0.00012721,2]
[407865992,1772845835123,-745.65223616,0.00012739,2]
[407865993,1772845835132,-313.0,0.00012752,2]
[407865994,1772845835142,-420.0,0.00012752,2]
[407865995,1772845835152,-1680.0,0.00012773,2]
[407865996,1772845835162,-255.0,0.00012775,2]
[407865997,1772845835171,-773.2413689,0.00012794,2]
[407865998,1772845835181,-801.85129955,0.00012849,2]
[407865999,1772845835191,-11475.86644196,0.00012854,2]
[407866000,1772845835200,-831.51979763,0.00012904,2]
[407866001,1772845835210,-12755.09128668,0.00012907,2]
[407866002,1772845835220,-1486.38386609,0.00012936,3]
[407866003,1772845835230,-862.28603014,0.00012959,2]
[407866004,1772845835240,-226.30646804,0.00012969,2]
[407866005,1772845835250,-244.5,0.00012981,2]
[407866006,1772845835260,-1695.2329513,0.00013,2]
[407866007,1772845835270,-894.19061326,0.00013014,2]
[407866008,1772845835280,-200.0,0.00013042,2]
[407866009,1772845835290,-927.27566595,0.00013069,2]
[407866010,1772845835301,-961.58486559,0.00013124,2]
[407866011,1772845835311,-1500.0,0.00013168,2]
[407866012,1772845835321,-500.0,0.00013168,2]
[407866013,1772845835331,-1000.0,0.00013168,2]
[407866014,1772845835341,-997.16350561,0.00013179,2]
[407866015,1772845835351,-200.0,0.00013229,2]
[407866016,1772845835362,-501.33101077,0.00013268,2]
[407866017,1772845835372,-1500.0,0.00013268,2]
[407866018,1772845835382,-506.0,0.0001342,2]
[407866019,1772845835392,-3240.0,0.00013425,2]
[407866020,1772845835401,-964.06793134,0.00013487,2]
[407866021,1772845835412,-892.86053309,0.00013487,2]
[407866022,1772845835422,-244.5,0.00013599,2]
[407866023,1772845835432,-500.0,0.00013698,2]
[407866024,1772845835442,-500.0,0.00013698,2]
[407866025,1772845835451,-500.0,0.00013698,2]
[407866026,1772845835461,-500.0,0.00013698,2]
[407866027,1772845835471,-500.0,0.00013698,2]
[407866028,1772845835481,-500.0,0.00013698,2]
[407866029,1772845835490,-500.0,0.00013698,2]
[407866030,1772845835500,-500.0,0.00013698,2]
[407866031,1772845835510,-500.0,0.00013698,2]
[407866032,1772845835520,-500.0,0.00013698,2]
[407866033,1772845835531,-630.81055911,0.00013698,2]
[407866034,1772845835540,-515.82300736,0.00013698,2]
[407866035,1772845835550,-500.0,0.00013698,2]
[407866036,1772845835560,-500.0,0.00013698,2]
[407866037,1772845835570,-500.0,0.00013698,2]
[407866038,1772845835580,-500.0,0.00013698,2]
[407866039,1772845835589,-500.0,0.00013698,2]
[407866040,1772845835599,-500.0,0.00013698,2]
[407866041,1772845835608,-500.0,0.00013698,2]
[407866042,1772845835618,-500.0,0.00013698,2]
[407866043,1772845835627,-500.0,0.00013698,2]
[407866044,1772845835637,-500.0,0.00013698,2]
[407866045,1772845835647,-500.0,0.00013698,2]
[407866046,1772845835656,-500.0,0.00013698,2]
[407866047,1772845835667,-500.0,0.00013698,2]
[407866048,1772845835677,-500.0,0.00013698,2]
[407866049,1772845835687,-500.0,0.00013698,2]
[407866050,1772845835697,-500.0,0.00013698,2]
[407866051,1772845835706,-551.6181156,0.00013698,2]
[407866052,1772845835715,-508.69,0.00013698,2]
[407866053,1772845835724,-508.69,0.00013698,2]
[407866054,1772845835734,-508.69,0.00013698,2]
[407866055,1772845835744,-508.69,0.00013698,2]
[407866056,1772845835754,-500.0,0.00013698,2]
[407866057,1772845835763,-500.0,0.00013698,2]
[407866058,1772845835772,-500.0,0.00013698,2]
[407866059,1772845835782,-500.0,0.00013698,2]
[407866060,1772845835791,-500.0,0.00013698,2]
[407866061,1772845835803,-500.0,0.00013698,2]
[407866062,1772845835814,-500.0,0.00013698,2]
[407866063,1772845835823,-500.0,0.00013698,2]
[407866064,1772845835833,-500.0,0.00013698,2]
[407866065,1772845835843,-500.0,0.00013698,2]
[407866066,1772845835853,-500.0,0.00013698,2]
[407866067,1772845835863,-500.0,0.00013698,2]
[407866068,1772845835872,-500.0,0.00013698,2]
[407866069,1772845835882,-500.0,0.00013698,2]
[407866070,1772845835891,-500.0,0.00013698,2]
[407866071,1772845835900,-500.0,0.00013698,2]
[407866072,1772845835910,-500.0,0.00013698,2]
[407866073,1772845835919,-500.0,0.00013698,2]
[407866074,1772845835928,-500.0,0.00013698,2]
[407866075,1772845835938,-500.0,0.00013698,2]
[407866076,1772845835947,-500.0,0.00013698,2]
[407866077,1772845835956,-500.0,0.00013698,2]
[407866078,1772845835966,-500.0,0.00013698,2]
[407866079,1772845835976,-500.0,0.00013698,2]
[407866080,1772845835985,-500.0,0.00013698,2]
[407866081,1772845835994,-500.0,0.00013698,2]
[407866082,1772845836005,-500.0,0.00013698,2]
[407866083,1772845836015,-500.0,0.00013698,2]
[407866084,1772845836025,-500.0,0.00013698,2]
[407866085,1772845836034,-500.0,0.00013698,2]
[407866086,1772845836046,-500.0,0.00013698,2]
[407866087,1772845836055,-500.0,0.00013698,2]
[407866088,1772845836065,-500.0,0.00013698,2]
[407866089,1772845836074,-500.0,0.00013698,2]
[407866090,1772845836084,-500.0,0.00013698,2]
[407866091,1772845836094,-500.0,0.00013698,2]
[407866092,1772845836103,-431.19033015,0.00013698,2]
[407866093,1772845836113,-500.0,0.00013698,2]
[407866094,1772845836123,-301.78790722,0.00013699,2]
[407866095,1772845836133,-500.0,0.00013699,2]
[407866096,1772845836144,-500.0,0.00013699,2]
[407866097,1772845836155,-152.0,0.00013699,2]
[407866098,1772845836164,-500.0,0.00013699,2]
[407866099,1772845836173,-500.0,0.00013699,2]
[407866100,1772845836182,-500.0,0.00013699,2]
[407866101,1772845836192,-500.0,0.00013699,2]
[407866102,1772845836202,-500.0,0.00013699,2]
[407866103,1772845836212,-500.0,0.00013699,2]
[407866104,1772845836222,-446.12402339,0.00013699,2]
[407866105,1772845836232,-500.0,0.00013699,2]
[407866106,1772845836241,-500.0,0.00013699,2]
[407866107,1772845836252,-500.0,0.00013699,2]
[407866108,1772845836262,-500.0,0.00013699,2]
[407866109,1772845836273,-603.56,0.000137,2]
[407866110,1772845836283,-603.56,0.000137,2]
[407866111,1772845836293,-603.56,0.000137,2]
[407866112,1772845836302,-2000.0,0.00013716,2]
[407866113,1772845836311,-11475.86644196,0.00013735,2]
[407866114,1772845836321,-200.0,0.00013777,2]
[407866115,1772845836331,-12755.09128668,0.00013781,2]
[407866116,1772845836340,-2000.0,0.00013816,2]
[407866117,1772845836349,-3900.0,0.000139,5]
[407866118,1772845836359,-500.0,0.00013907,2]
[407866119,1772845836368,-500.0,0.00013907,2]
[407866120,1772845836378,-500.0,0.00013907,2]
[407866121,1772845836387,-500.0,0.00013907,2]
[407866122,1772845836396,-500.0,0.00013907,2]
[407866123,1772845836405,-1600.0,0.00013913,2]
[407866124,1772845836414,-433.0,0.00013934,2]
[407866125,1772845836423,-500.0,0.00013954,2]
[407866126,1772845836434,-500.0,0.00013954,2]
[407866127,1772845836443,-500.0,0.00013954,2]
[407866128,1772845836452,-500.0,0.00013954,2]
[407866129,1772845836462,-500.0,0.00013954,2]
[407866130,1772845836471,-182.43846544,0.00013954,2]
[407866131,1772845836482,-500.0,0.00013982,2]
[407866132,1772845836491,-500.0,0.00013982,2]
[407866133,1772845836502,-587.0,0.00014005,2]
[407866134,1772845836512,-500.0,0.00014042,2]
[407866135,1772845836521,-2351.0,0.0001405,2]
[407866136,1772845836531,-501.5980447,0.00014104,3]
[407866137,1772845836540,-226.306468,0.00014124,2]
[407866138,1772845836550,-244.5,0.00014217,2]
[407866139,1772845836559,-500.0,0.00014247,2]
[407866140,1772845836569,-1000.0,0.00014247,2]
[407866141,1772845836578,-500.0,0.00014247,2]
[407866142,1772845836588,-500.0,0.00014247,2]
[407866143,1772845836599,-1000.0,0.00014247,2]
[407866144,1772845836610,-500.0,0.00014247,2]
[407866145,1772845836619,-1405.56897444,0.00014264,2]
[407866146,1772845836630,-200.0,0.00014325,2]
[407866147,1772845836641,-2500.0,0.00014364,2]
[407866148,1772845836652,-500.0,0.00014383,2]
[407866149,1772845836662,-506.0,0.00014414,2]
[407866150,1772845836671,-1000.0,0.00014455,2]
[407866151,1772845836682,-1000.0,0.00014455,2]
[407866152,1772845836691,-949.5306254,0.00014455,2]
[407866153,1772845836700,-1000.0,0.00014455,2]
[407866154,1772845836709,-1030.88059829,0.00014455,2]
[407866155,1772845836803,-2416.0,0.0001446,2]
[407866156,1772845836814,-603.56,0.00014475,2]
[407866157,1772845836824,-1515.0,0.00014485,2]
[407866158,1772845836836,-1515.0,0.00014485,2]
[407866159,1772845836846,-1515.0,0.00014485,2]
[407866160,1772845836857,-1515.0,0.00014485,2]
[407866161,1772845836867,-1515.0,0.00014485,2]
[407866162,1772845836878,-1515.0,0.00014485,2]
[407866163,1772845836887,-1515.0,0.00014485,2]
[407866164,1772845836896,-1515.0,0.00014485,2]
[407866165,1772845836905,-1515.0,0.00014485,2]
[407866166,1772845836915,-1515.0,0.00014485,2]
[407866167,1772845836923,-1515.0,0.00014485,2]
[407866168,1772845836932,-1515.0,0.00014485,2]
[407866169,1772845836942,-1515.0,0.00014485,2]
[407866170,1772845836951,-1515.0,0.00014485,2]
[407866171,1772845836960,-1515.0,0.00014485,2]
[407866172,1772845836970,-1515.0,0.00014485,2]
[407866173,1772845836979,-1515.0,0.00014485,2]
[407866174,1772845836989,-1515.0,0.00014485,2]
[407866175,1772845836999,-1515.0,0.00014485,2]
[407866176,1772845837009,-1515.0,0.00014485,2]
[407866177,1772845837018,-1515.0,0.00014485,2]
[407866178,1772845837027,-1515.0,0.00014485,2]
[407866179,1772845837036,-1515.0,0.00014485,2]
[407866180,1772845837047,-200.0,0.00014486,2]
[407866181,1772845837056,-1000.0,0.00014502,2]
[407866182,1772845837066,-1000.0,0.00014502,2]
[407866183,1772845837077,-500.0,0.00014502,2]
[407866184,1772845837087,-500.0,0.00014502,2]
[407866185,1772845837096,-9999.99,0.00014504,2]
[407866186,1772845837106,-19999.99,0.00014504,2]
[407866187,1772845837116,-500.0,0.0001453,2]
[407866188,1772845837127,-500.0,0.0001453,2]
[407866189,1772845837137,-1000.0,0.0001459,2]
[407866190,1772845837147,-11475.86644196,0.00014615,2]
[407866191,1772845837157,-151.0,0.00014634,2]
[407866192,1772845837166,-151.0,0.00014634,2]
[407866193,1772845837175,-151.0,0.00014634,2]
[407866194,1772845837184,-603.56,0.00014645,2]
[407866195,1772845837193,-12755.09128668,0.00014655,2]
[407866196,1772845837202,-500.0,0.00014748,2]
[407866197,1772845837211,-500.0,0.00014748,2]
[407866198,1772845837220,-999.8,0.00014795,2]
[407866199,1772845837230,-1500.0,0.00014795,2]
[407866200,1772845837239,-244.5,0.00014835,2]
[407866201,1772845837247,-1456.74,0.00014853,2]
[407866202,1772845837256,-1864.78,0.00014853,2]
[407866203,1772845837266,-240.02207299,0.00014873,2]
[407866204,1772845837275,-3000.0,0.00014912,2]
[407866205,1772845837284,-2954.20351618,0.00015,14]
[407866206,1772845837293,-2327.55718638,0.00015,7]
[407866207,1772845837303,-250.0,0.00015,2]
[407866208,1772845837312,-1500.0,0.00015003,2]
[407866209,1772845837321,-1500.0,0.00015003,2]
[407866210,1772845837330,-1500.0,0.00015003,2]
[407866211,1772845837340,-1007.43613076,0.0001502,2]
[407866212,1772845837349,-1500.0,0.0001505,2]
[407866213,1772845837358,-1557.2086331,0.0001505,2]
[407866214,1772845837367,-1500.0,0.00015138,2]
[407866215,1772845837377,-2726.08,0.00015191,10]
[407866216,1772845837386,-736.0,0.00015211,2]
[407866217,1772845837396,-876.76,0.00015223,2]
[407866218,1772845837406,-250.0,0.00015266,2]
[407866219,1772845837415,-226.306468,0.00015279,2]
[407866220,1772845837424,-361.3,0.000153,2]
[407866221,1772845837433,-1261.43,0.000153,2]
[407866222,1772845837442,-1600.0,0.00015305,2]
[407866223,1772845837452,-2000.0,0.00015342,2]
[407866224,1772845837461,-500.0,0.00015368,2]
[407866225,1772845837470,-499.0,0.0001538,2]
[407866226,1772845837480,-2726.08,0.00015404,10]
[407866227,1772845837489,-5446.34392361,0.00015405,2]
[407866228,1772845837498,-506.0,0.00015407,3]
[407866229,1772845837507,-244.5,0.00015454,2]
[407866230,1772845837517,-3292.0,0.00015455,2]
[407866231,1772845837526,-3500.0,0.0001546,2]
[407866232,1772845837535,-876.76,0.00015497,2]
[407866233,1772845837544,-677.63162852,0.0001552,2]
[407866234,1772845837560,-1322.36837148,0.0001552,2]
[407866235,1772845837569,-1823.4628971,0.00015529,2]
[407866236,1772845837580,-10931.62838958,0.00015529,2]
[407866237,1772845837589,-500.0,0.00015547,2]
[407866238,1772845837599,-500.0,0.00015547,2]
[407866239,1772845837608,-508.69,0.00015547,2]
[407866240,1772845837617,-500.0,0.00015547,2]
[407866241,1772845837626,-500.0,0.00015547,2]
[407866242,1772845837635,-500.0,0.00015547,2]
[407866243,1772845837644,-500.0,0.00015547,2]
[407866244,1772845837653,-500.0,0.00015547,2]
[407866245,1772845837662,-2000.0,0.00015551,2]
[407866246,1772845837671,-2000.0,0.00015551,2]
[407866247,1772845837680,-665.0,0.00015589,2]
[407866248,1772845837690,-242.58418547,0.00015617,10]
[407866249,1772845837701,-2483.49581453,0.00015617,10]
[407866250,1772845837711,-2000.0,0.0001562,2]
[407866251,1772845837721,-2000.0,0.0001572,2]
[407866252,1772845837730,-2000.0,0.0001572,2]
[407866253,1772845837742,-876.76,0.00015771,2]